Cogmind - Beta 13 @@@ ROGUE MODE // 2024.04.05 @ 19:15:01 Player: Ferlic_Azid Result: Destroyed by Autobeam Turret with Autobeam Performance ------------- Evolutions (0) 0 Regions Visited (3) 600 Robots Destroyed (5) 25 Value Destroyed (170) 170 Prototype IDs (2) 40 Alien Tech Used (0) 0 Bonus (-153) -153 TOTAL SCORE: 682 Bonus ------- Friendly Fire -153 Cogmind --------- Core Integrity 0/250 Matter 300/300 Energy 193/200 System Corruption 0% Temperature Cool (6) Movement Walking (190) Ox1 Location -10/Subcaves Parts ------- > --- POWER (1) -------- Subdweller Power Source > --- PROPULSION (2) --- Myomer Leg Myomer Leg > --- UTILITY (2) ------ High-capacity Storage Unit > --- WEAPON (2) ------- Beam Cannon Makeshift Hammer > --- INVENTORY (20) --- Subdweller Power Source EM Pulse Gun Beam Cannon Light Assault Rifle Subdweller Machine Gun Barrage Gun Battle Cannon Battle Cannon Battle Cannon Peak State ------------ > --- POWER ------------ Subdweller Power Source > --- PROPULSION ------- Myomer Leg Myomer Leg > --- UTILITY ---------- Improved Heat Sink High-capacity Storage Unit > --- WEAPON ----------- Beam Cannon Makeshift Hammer > --- INVENTORY -------- EM Pulse Gun Beam Cannon Light Assault Rifle Subdweller Machine Gun Battle Cannon Battle Cannon Battle Cannon [Rating: 26] Favorites ----------- Power Ion Engine Engine Ion Engine Propulsion Light Treads Treads Light Treads Leg Myomer Leg Utility Signal Interpreter Device Improved Heat Sink Storage Small Storage Unit Processor Signal Interpreter Weapon Beam Cannon Energy Gun EM Pulse Gun Energy Cannon Beam Cannon Ballistic Gun Light Assault Rifle Launcher Grenade Launcher Impact Weapon Makeshift Hammer Build | -11 -10 -10 -10 ------- Run | Yrd Mat Min Sub Slots Evolved . | . . . . Power . | . . . . Propulsion . | . . . . Utility . | . . . . Weapon . | . . . . Parts Attached 17 | 6 2 1 8 Power 2 | 1 . . 1 Engine 2 | 1 . . 1 Core . | . . . . Reactor . | . . . . Propulsion 4 | 2 . . 2 Treads 2 | 2 . . . Leg 2 | . . . 2 Wheel . | . . . . Hover . | . . . . Flight . | . . . . Utility 4 | 1 1 . 2 Device 1 | . . . 1 Storage 2 | 1 . . 1 Processor 1 | . 1 . . Hackware . | . . . . Protection . | . . . . Artifact . | . . . . Weapon 7 | 2 1 1 3 Energy Gun 1 | 1 . . . Energy Cannon 2 | . . 1 1 Ballistic Gun 1 | 1 . . . Ballistic Cannon . | . . . . Launcher 2 | . 1 . 1 Special Weapon . | . . . . Impact Weapon 1 | . . . 1 Slashing Weapon . | . . . . Piercing Weapon . | . . . . Special Melee Weapon . | . . . . Unidentified Prototypes . | . . . . Parts Lost 5 | . . . 5 Power 1 | . . . 1 Propulsion 1 | . . . 1 Utility 1 | . . . 1 Weapon 2 | . . . 2 Highest Loss Streak 4 | . . . 4 To Critical Strikes 1 | . . . 1 Average Slot Usage (%) 98 | . 95 100 97 Engine 13 | . 14 14 13 Treads 19 | . 28 28 8 Leg 8 | . . . 18 Device 4 | . . . 9 Storage 14 | . 14 14 14 Processor 9 | . 9 14 3 Energy Cannon 10 | . . 11 13 Ballistic Gun 9 | . 14 14 4 Launcher 2 | . 12 2 . Impact Weapon 4 | . . . 9 Naked Turns . | . . . . Heaviest Build 52 | 13 14 14 52 Greatest Support 50 | 40 40 40 50 Greatest Overweight (x) 2 | . . . 2 Average Overweight (x) . | . . . . Largest Inventory Capacity 20 | 8 8 8 20 Average Capacity 12 | 7 8 8 18 Most Carried 9 | 5 3 8 9 Average Carried 6 | . 2 6 6 Final Capacity 20 | 8 8 8 20 Final Carried 9 | . 3 7 9 Class Distribution -------------------- 70% | Mutant 29% | Scavenger-Mutant Dominant Class ---------------- Mutant | -10/Materials Mutant | -10/Mines Scavenger-Mutant | -10/Subcaves Resources | -11 -10 -10 -10 ----------- Run | Yrd Mat Min Sub Matter Collected 409 | 171 . 152 86 Remotely . | . . . . Salvage Created 169 | . . 59 110 Parts 6 | . . . 6 Haulers Intercepted . | . . . . Recyclers Shooed . | . . . . Parts Field Recycled . | . . . . Retrieved Matter . | . . . . Parts Self-Destructed 4 | . . . 4 Prevented . | . . . . Kills | -11 -10 -10 -10 ------- Run | Yrd Mat Min Sub Combat Hostiles Destroyed 4 | . . 2 2 Melee 1 | . . . 1 Guns 1 | . . 1 . AOE 2 | . . 1 1 Classes Destroyed 3 | . . 1 2 Sentry 2 | . . 2 . Subdweller 2 | . . . 2 Guerrilla 1 | . . . 1 Best Kill Streak 2 | . . 2 2 Combat Bots Only 2 | . . 2 2 Max Kills in Single Turn 1 | . . 1 1 Gunslinging . | . . . . Exploded 1 | . . 1 1 Melee 1 | . . . 1 Uniques/NPCs Destroyed . | . . . . Combat | -11 -10 -10 -10 -------- Run | Yrd Mat Min Sub Hostile Shots Fired 102 | . . 10 92 Missed 30 | . . 3 27 Damage Taken 1108 | . . 144 964 Core 252 | . . 26 226 Absorbed by Shields . | . . . . Core Remaining (%) 100 | 100 . . . Volleys Fired 17 | . . 4 13 Largest 2 | . . 2 2 Hottest 80 | . . 50 80 Shots Fired 27 | . . 8 19 Gun 10 | . . 4 6 Cannon 11 | . . . 11 Launcher 6 | . . 4 2 Special . | . . . . Kinetic 10 | . . 4 6 Thermal 11 | . . . 11 Explosive 6 | . . 4 2 Electromagnetic . | . . . . Robot Hit Streak 6 | . . 4 6 Robot Miss Streak 4 | . . 1 4 Penetration Max . | . . . . Secondary Targets . | . . . . Shots Hit Robots 22 | . . 6 16 Core Hits 18 | . . 8 10 Critical Kills . | . . . . Critical Parts Destroyed 1 | . . . 1 Critical Strikes 1 | . . . 1 Smash 1 | . . . 1 Melee Attacks 11 | . . . 11 Impact 11 | . . . 11 Slashing . | . . . . Piercing . | . . . . Sneak Attacks . | . . . . Combat Hostiles . | . . . . Follow-up Attacks . | . . . . Damage Inflicted 843 | . . 176 667 Guns 76 | . . 33 43 Cannons 122 | . . . 122 Explosions 457 | . . 143 314 Melee 188 | . . . 188 Ramming . | . . . . Kinetic 76 | . . 33 43 Thermal 122 | . . . 122 Explosive 457 | . . 143 314 Electromagnetic . | . . . . Impact 188 | . . . 188 Slashing . | . . . . Piercing . | . . . . Highest Corruption . | . . . . Average Corruption . | . . . . Corruption Purged . | . . . . Corruption Blocked . | . . . . Overload Shots . | . . . . Overflow Damage 96 | . . . 96 Projectiles . | . . . . Explosions 33 | . . . 33 Melee 63 | . . . 63 Knockbacks 2 | . . . 2 Impact 1 | . . . 1 Kinetic . | . . . . Secondary 1 | . . . 1 Self-Inflicted Damage 113 | . . 40 73 Shots 4 | . . 2 2 Rammed . | . . . . Targets Rammed . | . . . . Kicked . | . . . . Crushed . | . . . . Highest Temperature 228 | . . 20 228 Average Temperature 73 | . . 11 114 Received Heat Transfer 478 | . . 36 442 Siege Activations . | . . . . Robots Corrupted . | . . . . Combat Hostiles . | . . . . Parts Fried . | . . . . Impact Corruptions 1 | . . . 1 Robots Melted . | . . . . Combat Hostiles . | . . . . Parts Melted . | . . . . Heat Transferred 259 | . . . 259 Parts Sabotaged . | . . . . Parts Stolen . | . . . . Parts Stripped . | . . . . Power Chain Reactions . | . . . . Alert | -11 -10 -10 -10 ------- Run | Yrd Mat Min Sub Peak Influence 84 | . 11 84 . Initial 4 | . . 4 . Average 28 | . 2 38 . Maximum Alert Level . | . . . . Low Security (%) 100 | 100 100 100 . Level 1 . | . . . . Level 2 . | . . . . Level 3 . | . . . . Level 4 . | . . . . Level 5 . | . . . . High Security . | . . . . Max Security . | . . . . Squads Dispatched . | . . . . Investigation . | . . . . Extermination . | . . . . Reinforcement . | . . . . Assault . | . . . . Garrison . | . . . . Intercept . | . . . . Searches Triggered . | . . . . Construction Impeded . | . . . . Haulers Reinforced . | . . . . Active Scanning Responses . | . . . . Cargo Convoy Interrupts . | . . . . Stealth | -11 -10 -10 -10 --------- Run | Yrd Mat Min Sub Distress Signals . | . . . . Communications Jammed . | . . . . Distress Signals . | . . . . Times Spotted 40 | . 1 3 36 Peak Tracking Total 8 | . 1 2 8 Tactical Retreats 2 | . . . 2 Traps | -11 -10 -10 -10 ------- Run | Yrd Mat Min Sub Traps Triggered . | . . . . Indirectly . | . . . . Trap Hack Attempts . | . . . . Triggered . | . . . . Disarmed . | . . . . Reprogrammed . | . . . . Reused . | . . . . Traps Extracted . | . . . . Installed . | . . . . Triggered . | . . . . Machines | -11 -10 -10 -10 ---------- Run | Yrd Mat Min Sub Machines Disabled 2 | . . 2 . Max in Single Turn 1 | . . 1 . Machines Repaired . | . . . . Machines Dismantled . | . . . . Machines Sabotaged . | . . . . Overloaded Fab Kills . | . . . . Hacking | -11 -10 -10 -10 --------- Run | Yrd Mat Min Sub Machines Accessed 3 | . 3 . . Terminals 2 | . 2 . . Fabricators . | . . . . Repair Stations . | . . . . Recycling Units 1 | . 1 . . Scanalyzers . | . . . . Garrison Access . | . . . . Total Hacks 10 | . 10 . . Successful 9 | . 9 . . Failed 1 | . 1 . . Catastrophic . | . . . . Database Lockouts . | . . . . Manual . | . . . . Terminals 7 | . 7 . . Fabricators . | . . . . Repair Stations . | . . . . Recycling Units 3 | . 3 . . Scanalyzers . | . . . . Garrison Access . | . . . . Terminal Hacks 6 | . 6 . . Record 5 | . 5 . . Prototype ID Bank 1 | . 1 . . Fabricator Hacks . | . . . . Repair Station Hacks . | . . . . Recycling Unit Hacks 3 | . 3 . . Process 1 | . 1 . . Report Inventory 1 | . 1 . . Retrieve Matter 1 | . 1 . . Scanalyzer . | . . . . Garrison Access Hacks . | . . . . Unauthorized Hacks . | . . . . Terminals . | . . . . Fabricators . | . . . . Repair Stations . | . . . . Recycling Units . | . . . . Scanalyzers . | . . . . Garrison Access . | . . . . Data Cores Recovered . | . . . . Used . | . . . . Hacking Detections 3 | . 3 . . Full Trace Events . | . . . . Feedback Events . | . . . . Feedback Blocked . | . . . . Robot Schematics Acquired . | . . . . Robots Built . | . . . . Authchips . | . . . . Time . | . . . . Total Robot Build Rating . | . . . . Part Schematics Acquired . | . . . . Parts Built . | . . . . Authchips . | . . . . Time . | . . . . Total Part Build Rating . | . . . . Parts Repaired . | . . . . Time . | . . . . Parts Recycled . | . . . . Recycled Matter 11 | . 11 . . Retrieved Matter 11 | . 11 . . Retrieved Components . | . . . . Parts Scanalyzed . | . . . . Part Schematics Acquired . | . . . . Parts Damaged . | . . . . Bothacking | -11 -10 -10 -10 ------------ Run | Yrd Mat Min Sub Used RIF Installer . | . . . . Robots Hacked . | . . . . Non-combat . | . . . . Combat . | . . . . Robot Hacks Applied . | . . . . Relay Couplers Released . | . . . . Fabnet Peak Effective % . | . . . . Robots Rewired . | . . . . Allies Hacked . | . . . . Hacks Repelled . | . . . . Allies | -11 -10 -10 -10 -------- Run | Yrd Mat Min Sub Total Allies . | . . . . Largest Group . | . . . . Highest-Rated Group . | . . . . Highest-Rated Ally . | . . . . Total Orders . | . . . . Ally Attacks . | . . . . Total Damage . | . . . . Kills . | . . . . Allies Corrupted . | . . . . Allies Melted . | . . . . Intel | -11 -10 -10 -10 ------- Run | Yrd Mat Min Sub Robot Analysis Total . | . . . . Derelict Logs Recovered . | . . . . Drone Launches . | . . . . Drone Recoveries . | . . . . Exploration | -11 -10 -10 -10 ------------- Run | Yrd Mat Min Sub Turns Passed 1762 | 55 226 744 737 Spaces Moved 821 | 39 138 320 324 Core 17 | 17 . . . Treads 583 | 22 138 320 103 Legs 221 | . . . 221 Wheels . | . . . . Hover . | . . . . Flight . | . . . . Fastest Speed 50 | 50 160 160 120 Average Speed 170 | 112 160 160 192 Slowest Speed 320 | 160 160 160 320 Overloaded Moves . | . . . . Propulsion Burnouts . | . . . . Robots Hopped . | . . . . Cave-ins Triggered . | . . . . Exploration Rate (%) 25 | 3 22 52 26 Regions Visited 3 Branch Regions 2 Pre-discovered Areas . | . . . . Known Exits Taken 2 | . 1 1 . Unknown Exits Taken 1 | 1 . . . Scrap Searched 2 | . . 2 . Spaces Dug . | . . . . Terrain Destroyed 32 | . . 27 5 Melee . | . . . . Projectile . | . . . . AOE 32 | . . 27 5 Terrain Rammed . | . . . . Walls Destroyed . | . . . . Machines Disabled . | . . . . Actions | -11 -10 -10 -10 --------- Run | Yrd Mat Min Sub Total 1149 | 50 144 547 408 Wait 250 | . . 211 39 Move 818 | 38 137 319 324 Hop . | . . . . Pick Up 28 | 6 4 8 10 Fast Attach . | . . . . Attach 13 | 6 2 . 5 Detach 1 | . 1 . . Swap 4 | . . 1 3 Drop 7 | . . 4 3 Fire 17 | . . 4 13 Melee 11 | . . . 11 Ram . | . . . . Kick . | . . . . Crush . | . . . . Escape Stasis . | . . . . Rewire . | . . . . Trap . | . . . . Miscellaneous . | . . . . Route ------- -11/Scrapyard -10/Materials -10/Mines (discovered 3 exits: *Mat x2 / *Sub) -10/Subcaves (discovered 3 exits: [*Mat x2] / [*Rec]) History --------- Turn | Location | Event 9 | -11/Scrapyard | Discovered new exit (range 16) 56 | -11/Scrapyard | Entered Materials 105 | -10/Materials | Discovered new exit (range 16) 191 | -10/Materials | Identified exit to Mines 282 | -10/Materials | Entered Mines 291 | -10/Mines | Met a Derelict bent on vengeance 315 | -10/Mines | Build established: Mutant 318 | -10/Mines | Discovered new exit (range 9) 356 | -10/Mines | Joined a pair of Derelicts in attacking an 0b10 outpost 636 | -10/Mines | Discovered new exit (range 16) 904 | -10/Mines | Identified exit to Materials 1022 | -10/Mines | Discovered new exit (range 3) 1024 | -10/Mines | Identified exit to Subcaves 1026 | -10/Mines | Entered Subcaves 1155 | -10/Subcaves | Discovered new exit (range 3) 1236 | -10/Subcaves | Ambushed by swarm of Subdwellers 1236 | -10/Subcaves | Ambushed by Subdwellers from Twisted Machinery 1236 | -10/Subcaves | Ambushed by Subdwellers from Twisted Machinery 1246 | -10/Subcaves | Core integrity fell below 50% 1284 | -10/Subcaves | Lost 4 parts (1p1n2w) 1350 | -10/Subcaves | Shifting Twisted Machinery released Spk. Treads 1353 | -10/Subcaves | Shifting Twisted Machinery released Battle Cannon 1480 | -10/Subcaves | Discovered new exit (range 8) 1552 | -10/Subcaves | Build established: Scavenger-Mutant 1709 | -10/Subcaves | Core integrity fell below 20% 1755 | -10/Subcaves | Discovered new exit (range 15) 1763 | -10/Subcaves | Destroyed by Autobeam Turret with Autobeam Last Messages --------------- Battle Cannon falls loose from the Twisted Machinery. 01356_ N0-ZMI(u) tweaks Twisted Machinery. 01480_ EXIT=FOUND 01485_ Acquired Battle Cannon. 01492_ EV-Z1X(O) puts together Barrage Gun. 01496_ 9O-SFW(R) destroyed. 01499_ J7-6D8(R) affixes Scrap Shield Fragment to Scrap Shield. 01502_ J7-6D8(R) suffers critical hit (Burn). 01502_ J7-6D8(R) destroyed. 01504_ X3-9Y3(g) destroyed. 01514_ Acquired Sub. Machine Gun. 01517_ Acquired Sub. Power Source. 01545_ Acquired Barrage Gun. 01708_ S-10 Pest springs to life. 01714_ 5R-2NJ(g) destroyed. 01725_ KR-D3G(g) destroyed. 01726_ Imp. Heat Sink destroyed. 01731_ S-10 Pest destroyed. 01741_ Lgt. Ion Engine fries itself beyond repair. 01755_ EXIT=FOUND Map ----- +----------------------------------------------------+ | ?????????????????????????????## #???# ## | | ??????????????????????????????## #??## # | | ???????????????????????????????# #?## | | ??????????????????????????????## ### | | ???????????????????? ?????????# # | | ???????????????????"" ####???## ########### | | ???????????????????"" #### ##?????????? | | ??????????????????"" #??????????? | | ??????????????????"" #??????????? | | ???????????????????## #??????????? | | ????????????????????# #####??????????? | | ????????????????????## ## ##?????????????? | | ?????????????????????# ?# ##????????????? | | ?????????????????????# ??## ###??????????? | | ?????????????????????# ?## ###????????? | | ?????????????????????# ## #????????? | | ?????????????????"" ## ##????????? | | ?????????????????? ##?????????? | | ??????????????????? ### ###??????????? | | ????????????????????##????# ##????????????? | | ??????????????????????????## ##?????????????? | | ???????????????????????????## ##??????????????? | | ???????????????????#####????## #???????????????? | | ??????????????????## ###??# #???????????????? | | ?????????????????## s ##?# ##???????????????? | | ????????????# ## @ ### #????????????????? | | ???????????# ##= #????????????????? | | ???????????# =%! ##???????????????? | | ???????????# !% #???????????????? | | ???????????## ## %= #???????????????? | | ????????????# ?# % ###?????????????? | | ????????????# #??# ## #?????????????? | | ????????????## ????# ### #?????????????? | | ????????????? ?????# s##?## ??????????? | | ????????????? ?????? ????## ??????? | | ??????????????????# ?????? ?????? | | ??????????????????# ??????# ??????? | | ??????????????????#" t t???????# ##?????? | | ??????????????????# " "???????? ####??????? | | ??????????????????# """ "???????? #?????????? | | ???????????????????#??#